fUST/lending_fUST_20250702
["ID","MTS","AMOUNT","RATE_DAILY","PERIOD"]
[369076864,1751458253789,-1638.84,0.00020273,2]
[369076865,1751458253799,-460.0,0.00020273,2]
[369076866,1751458253809,-460.0,0.00020273,2]
[369076867,1751458253819,-460.0,0.00020273,2]
[369076868,1751458253831,-151.0,0.00020273,2]
[369076869,1751458253841,-460.0,0.00020273,2]
[369076870,1751458253852,-1034.27,0.00020273,2]
[369076871,1751458253863,-963.51,0.00020273,2]
[369076872,1751458253874,-698.21,0.00020273,2]
[369076873,1751458253885,-500.0,0.00020273,2]
[369076874,1751458253895,-500.0,0.00020273,2]
[369076875,1751458253905,-151.0,0.000203,4]
[369076876,1751458253915,-2734.72311287,0.00020314,3]
[369076877,1751458253925,-153.0,0.00020317,2]
[369076878,1751458253936,-309.0123712,0.00020317,2]
[369076879,1751458253945,-1000.0,0.00020321,2]
[369076880,1751458253956,-912.77034642,0.00020321,2]
[369076881,1751458253966,-500.0,0.00020321,2]
[369076882,1751458253976,-500.0,0.00020321,2]
[369076883,1751458253986,-1000.0,0.00020321,2]
[369076884,1751458253996,-805.47,0.000204,2]
[369076885,1751458254006,-151.0,0.000204,3]
[369076886,1751458254015,-224.5,0.00020421,4]
[369076887,1751458254024,-9267.6449626,0.000205,2]
[369076888,1751458254034,-151.0,0.000205,3]
[369076889,1751458254043,-1001.60636709,0.00020521,2]
[369076890,1751458254053,-2734.72311287,0.00020521,3]
[369076891,1751458254063,-151.0,0.00020521,2]
[369076892,1751458254072,-151.0,0.00020521,2]
[369076893,1751458254082,-151.0,0.00020521,2]
[369076894,1751458254091,-449.818285,0.00020521,2]
[369076895,1751458254101,-151.0,0.00020521,2]
[369076896,1751458254110,-187.26329,0.00020521,2]
[369076897,1751458254120,-187.26329,0.00020521,2]
[369076898,1751458254130,-151.0,0.00020521,2]
[369076899,1751458254140,-166.304252,0.00020521,2]
[369076900,1751458254150,-166.304252,0.00020521,2]
[369076901,1751458254159,-403.356059,0.00020521,2]
[369076902,1751458254169,-151.0,0.00020521,2]
[369076903,1751458254178,-403.356059,0.00020521,2]
[369076904,1751458254188,-627.447633,0.00020521,2]
[369076905,1751458254198,-627.447633,0.00020521,2]
[369076906,1751458254207,-151.0,0.00020521,2]
[369076907,1751458254218,-151.0,0.00020521,2]
[369076908,1751458254229,-153.822867,0.00020521,2]
[369076909,1751458254240,-159.897268,0.00020521,2]
[369076910,1751458254250,-159.897268,0.00020521,2]
[369076911,1751458254259,-215.0738,0.00020535,2]
[369076912,1751458254270,-460.0,0.00020547,2]
[369076913,1751458254280,-460.0,0.00020547,2]
[369076914,1751458254290,-350.0,0.00020547,2]
[369076915,1751458254299,-460.0,0.00020547,2]
[369076916,1751458254310,-460.0,0.00020547,2]
[369076917,1751458254320,-460.0,0.00020547,2]
[369076918,1751458254329,-460.0,0.00020547,2]
[369076919,1751458254339,-460.0,0.00020547,2]
[369076920,1751458254498,-460.0,0.00020547,2]
[369076921,1751458254508,-460.0,0.00020547,2]
[369076922,1751458254518,-460.0,0.00020547,2]
[369076923,1751458254527,-481.52,0.00020547,2]
[369076924,1751458254537,-460.0,0.00020547,2]
[369076925,1751458254546,-2354.07,0.00020547,2]
[369076926,1751458254555,-607.6327046,0.00020547,2]
[369076927,1751458254565,-151.0,0.00020547,2]
[369076928,1751458254575,-460.0,0.00020547,2]
[369076929,1751458254584,-151.0,0.00020547,2]
[369076930,1751458254594,-460.0,0.00020547,2]
[369076931,1751458254603,-460.0,0.00020547,2]
[369076932,1751458254612,-151.0,0.00020547,2]
[369076933,1751458254622,-151.0,0.00020547,2]
[369076934,1751458254631,-460.0,0.00020547,2]
[369076935,1751458254641,-513.24098135,0.00020547,2]
[369076936,1751458254650,-517.36,0.00020547,2]
[369076937,1751458254660,-460.0,0.00020547,2]
[369076938,1751458254669,-460.0,0.00020547,2]
[369076939,1751458254678,-460.0,0.00020547,2]
[369076940,1751458254688,-460.0,0.00020547,2]
[369076941,1751458254697,-480.47125131,0.00020547,2]
[369076942,1751458254706,-460.0,0.00020547,2]
[369076943,1751458254716,-460.0,0.00020547,2]
[369076944,1751458254725,-151.0,0.00020547,2]
[369076945,1751458254735,-151.0,0.00020547,2]
[369076946,1751458254744,-388.59427715,0.00020547,2]
[369076947,1751458254754,-433.02262576,0.00020547,2]
[369076948,1751458254763,-460.0,0.00020547,2]
[369076949,1751458254774,-1060.04,0.00020547,2]
[369076950,1751458254783,-460.0,0.00020547,2]
[369076951,1751458254793,-460.0,0.00020547,2]
[369076952,1751458254802,-460.0,0.00020547,2]
[369076953,1751458254813,-460.0,0.00020547,2]
[369076954,1751458254825,-151.0,0.00020547,2]
[369076955,1751458254835,-460.0,0.00020547,2]
[369076956,1751458254846,-460.0,0.00020547,2]
[369076957,1751458254856,-460.0,0.00020547,2]
[369076958,1751458254865,-460.0,0.00020547,2]
[369076959,1751458254875,-460.0,0.00020547,2]
[369076960,1751458254884,-460.0,0.00020547,2]
[369076961,1751458254894,-460.0,0.00020547,2]
[369076962,1751458254903,-460.0,0.00020547,2]
[369076963,1751458254913,-460.0,0.00020547,2]
[369076964,1751458254922,-356.27553127,0.00020547,2]
[369076965,1751458254931,-545.36,0.00020547,2]
[369076966,1751458254941,-1469.86,0.00020547,2]
[369076967,1751458254951,-460.0,0.00020547,2]
[369076968,1751458254960,-460.0,0.00020547,2]
[369076969,1751458254970,-460.0,0.00020547,2]
[369076970,1751458254979,-526.65,0.00020547,2]
[369076971,1751458254988,-460.0,0.00020547,2]
[369076972,1751458254998,-151.0,0.00020547,2]
[369076973,1751458255007,-2125.92,0.00020547,2]
[369076974,1751458255017,-490.84,0.00020547,2]
[369076975,1751458255027,-460.0,0.00020547,2]
[369076976,1751458255036,-508.73,0.00020547,2]
[369076977,1751458255045,-490.33,0.00020547,2]
[369076978,1751458255056,-460.0,0.00020547,2]
[369076979,1751458255065,-460.0,0.00020547,2]
[369076980,1751458255075,-760.85,0.00020547,2]
[369076981,1751458255084,-460.0,0.00020547,2]
[369076982,1751458255094,-487.23,0.00020547,2]
[369076983,1751458255104,-460.0,0.00020547,2]
[369076984,1751458255114,-504.34976541,0.00020547,2]
[369076985,1751458255124,-460.0,0.00020547,2]
[369076986,1751458255134,-1402.12,0.00020547,2]
[369076987,1751458255144,-460.0,0.00020547,2]
[369076988,1751458255154,-460.0,0.00020547,2]
[369076989,1751458255163,-3328.85,0.00020547,2]
[369076990,1751458255174,-460.0,0.00020547,2]
[369076991,1751458255183,-460.0,0.00020547,2]
[369076992,1751458255192,-1997.93,0.00020547,2]
[369076993,1751458255202,-460.0,0.00020547,2]
[369076994,1751458255211,-460.0,0.00020547,2]
[369076995,1751458255221,-460.0,0.00020547,2]
[369076996,1751458255234,-460.0,0.00020547,2]
[369076997,1751458255243,-950.84,0.00020547,2]
[369076998,1751458255254,-628.67,0.00020547,2]
[369076999,1751458255263,-460.0,0.00020547,2]
[369077000,1751458255274,-926.617203,0.00020547,2]
[369077001,1751458255283,-1813.71,0.00020547,2]
[369077002,1751458255293,-151.0,0.00020547,2]
[369077003,1751458255305,-460.0,0.00020547,2]
[369077004,1751458255315,-926.617203,0.00020547,2]
[369077005,1751458255324,-151.0,0.00020547,2]
[369077006,1751458255334,-460.0,0.00020547,2]
[369077007,1751458255343,-460.0,0.00020547,2]
[369077008,1751458255353,-460.0,0.00020547,2]
[369077009,1751458255364,-460.0,0.00020547,2]
[369077010,1751458255373,-1930.04,0.00020547,2]
[369077011,1751458255382,-460.0,0.00020547,2]
[369077012,1751458255392,-460.0,0.00020547,2]
[369077013,1751458255402,-460.0,0.00020547,2]
[369077014,1751458255411,-151.0,0.00020547,2]
[369077015,1751458255421,-151.0,0.00020547,2]
[369077016,1751458255430,-2987.27,0.00020547,2]
[369077017,1751458255440,-151.0,0.00020547,2]
[369077018,1751458255449,-543.39,0.00020547,2]
[369077019,1751458255458,-1280.28,0.00020547,2]
[369077020,1751458255468,-630.1,0.00020547,2]
[369077021,1751458255477,-460.0,0.00020547,2]
[369077022,1751458255487,-1228.08,0.00020547,2]
[369077023,1751458255496,-767.72,0.00020547,2]
[369077024,1751458255506,-460.0,0.00020547,2]
[369077025,1751458255515,-3234.28,0.00020547,2]
[369077026,1751458255524,-605.46,0.00020547,2]
[369077027,1751458255534,-460.0,0.00020547,2]
[369077028,1751458255543,-460.0,0.00020547,2]
[369077029,1751458255552,-460.0,0.00020547,2]
[369077030,1751458255561,-460.0,0.00020547,2]
[369077031,1751458255571,-460.0,0.00020547,2]
[369077032,1751458255580,-460.0,0.00020547,2]
[369077033,1751458255590,-549.86,0.00020547,2]
[369077034,1751458255599,-1638.84,0.00020547,2]
[369077035,1751458255609,-460.0,0.00020547,2]
[369077036,1751458255619,-460.0,0.00020547,2]
[369077037,1751458255628,-460.0,0.00020547,2]
[369077038,1751458255637,-151.0,0.00020547,2]
[369077039,1751458255647,-1034.27,0.00020547,2]
[369077040,1751458255656,-963.51,0.00020547,2]
[369077041,1751458255665,-698.21,0.00020547,2]
[369077042,1751458255675,-1024.763,0.00020591,2]
[369077043,1751458255684,-2092.62,0.000206,2]
[369077044,1751458255693,-151.0,0.000206,3]
[369077045,1751458255703,-151.0,0.000207,3]
[369077046,1751458255712,-2734.72311287,0.00020728,3]
[369077047,1751458255722,-213.90888375,0.0002073,3]
[369077048,1751458255731,-12573.65100011,0.0002073,3]
[369077049,1751458255740,-847.65867985,0.0002073,3]
[369077050,1751458255750,-151.0,0.000208,4]
[369077051,1751458255759,-2000.0,0.00020816,2]
[369077052,1751458255769,-460.0,0.00020821,2]
[369077053,1751458255779,-460.0,0.00020821,2]
[369077054,1751458255788,-514.43493426,0.00020821,2]
[369077055,1751458255797,-460.0,0.00020821,2]
[369077056,1751458255807,-460.0,0.00020821,2]
[369077057,1751458255816,-460.0,0.00020821,2]
[369077058,1751458255827,-460.0,0.00020821,2]
[369077059,1751458255836,-460.0,0.00020821,2]
[369077060,1751458255846,-460.0,0.00020821,2]
[369077061,1751458255855,-460.0,0.00020821,2]
[369077062,1751458255865,-151.0,0.00020821,2]
[369077063,1751458255875,-481.52,0.00020821,2]
[369077064,1751458255884,-460.0,0.00020821,2]
[369077065,1751458255893,-151.0,0.00020821,2]
[369077066,1751458255903,-151.0,0.00020821,2]
[369077067,1751458255914,-151.0,0.00020821,2]
[369077068,1751458255924,-151.0,0.00020821,2]
[369077069,1751458255934,-2354.07,0.00020821,2]
[369077070,1751458255946,-151.0,0.00020821,2]
[369077071,1751458255956,-151.0,0.00020821,2]
[369077072,1751458255966,-151.0,0.00020821,2]
[369077073,1751458255976,-237.600884,0.00020821,2]
[369077074,1751458255985,-115.97714033,0.00020821,2]
[369077075,1751458256319,-160.0,0.00019173,2]
[369077076,1751458256330,-614.88,0.00019178,2]
[369077077,1751458256342,-268.46516783,0.00019452,2]
[369077078,1751458256354,-346.41483217,0.00019452,2]
[369077079,1751458256364,-121.62374367,0.00020821,2]
[369077080,1751458256373,-151.0,0.00020821,2]
[369077081,1751458256382,-460.0,0.00020821,2]
[369077082,1751458256393,-151.0,0.00020821,2]
[369077083,1751458256402,-460.0,0.00020821,2]
[369077084,1751458256411,-629.392819,0.00020821,2]
[369077085,1751458256420,-151.0,0.00020821,2]
[369077086,1751458256430,-629.392819,0.00020821,2]
[369077087,1751458256439,-151.0,0.00020821,2]
[369077088,1751458256449,-460.0,0.00020821,2]
[369077089,1751458256458,-517.36,0.00020821,2]
[369077090,1751458256467,-151.0,0.00020821,2]
[369077091,1751458256476,-460.0,0.00020821,2]
[369077092,1751458256486,-460.0,0.00020821,2]
[369077093,1751458256495,-429.79114853,0.00020821,2]
[369077094,1751458256504,-460.0,0.00020821,2]
[369077095,1751458256514,-151.0,0.00020821,2]
[369077096,1751458256523,-460.0,0.00020821,2]
[369077097,1751458256532,-449.818285,0.00020821,2]
[369077098,1751458256542,-460.0,0.00020821,2]
[369077099,1751458256551,-151.0,0.00020821,2]
[369077100,1751458256560,-151.0,0.00020821,2]
[369077101,1751458256570,-151.0,0.00020821,2]
[369077102,1751458256579,-187.26329,0.00020821,2]
[369077103,1751458256589,-187.26329,0.00020821,2]
[369077104,1751458256599,-151.0,0.00020821,2]
[369077105,1751458256608,-166.304252,0.00020821,2]
[369077106,1751458256617,-166.304252,0.00020821,2]
[369077107,1751458256627,-460.0,0.00020821,2]
[369077108,1751458256637,-1060.04,0.00020821,2]
[369077109,1751458256646,-460.0,0.00020821,2]
[369077110,1751458256655,-304.37512834,0.00020821,2]
[369077111,1751458256670,-155.62487166,0.00020821,2]
[369077112,1751458256680,-460.0,0.00020821,2]
[369077113,1751458256689,-151.0,0.00020821,2]
[369077114,1751458256699,-460.0,0.00020821,2]
[369077115,1751458256708,-460.0,0.00020821,2]
[369077116,1751458256718,-403.356059,0.00020821,2]
[369077117,1751458256727,-151.0,0.00020821,2]
[369077118,1751458256737,-403.356059,0.00020821,2]
[369077119,1751458256746,-75.1279374,0.00020821,2]
[369077120,1751458256758,-384.8720626,0.00020821,2]
[369077121,1751458256768,-460.0,0.00020821,2]
[369077122,1751458256777,-460.0,0.00020821,2]
[369077123,1751458256787,-460.0,0.00020821,2]
[369077124,1751458256796,-460.0,0.00020821,2]
[369077125,1751458256805,-460.0,0.00020821,2]
[369077126,1751458256815,-1469.86,0.00020821,2]
[369077127,1751458256825,-460.0,0.00020821,2]
[369077128,1751458256834,-460.0,0.00020821,2]
[369077129,1751458256844,-526.65,0.00020821,2]
[369077130,1751458256853,-460.0,0.00020821,2]
[369077131,1751458256863,-151.0,0.00020821,2]
[369077132,1751458256872,-2125.92,0.00020821,2]
[369077133,1751458256881,-490.84,0.00020821,2]
[369077134,1751458256890,-460.0,0.00020821,2]
[369077135,1751458256900,-508.73,0.00020821,2]
[369077136,1751458256909,-490.33,0.00020821,2]
[369077137,1751458256919,-460.0,0.00020821,2]
[369077138,1751458256928,-760.85,0.00020821,2]
[369077139,1751458256937,-460.0,0.00020821,2]
[369077140,1751458256947,-487.23,0.00020821,2]
[369077141,1751458256956,-460.0,0.00020821,2]
[369077142,1751458256966,-460.0,0.00020821,2]
[369077143,1751458256976,-1402.12,0.00020821,2]
[369077144,1751458256986,-460.0,0.00020821,2]
[369077145,1751458256995,-460.0,0.00020821,2]
[369077146,1751458257005,-3328.85,0.00020821,2]
[369077147,1751458257014,-460.0,0.00020821,2]
[369077148,1751458257024,-460.0,0.00020821,2]
[369077149,1751458257033,-1997.93,0.00020821,2]
[369077150,1751458257042,-460.0,0.00020821,2]
[369077151,1751458257051,-460.0,0.00020821,2]
[369077152,1751458257184,-460.0,0.00020821,2]
[369077153,1751458257194,-627.447633,0.00020821,2]
[369077154,1751458257203,-167.35130431,0.00020821,2]
[369077155,1751458257213,-950.84,0.00020821,2]
[369077156,1751458257225,-628.67,0.00020821,2]
[369077157,1751458257240,-627.447633,0.00020821,2]
[369077158,1751458257250,-460.0,0.00020821,2]
[369077159,1751458257259,-926.617203,0.00020821,2]
[369077160,1751458257269,-750.54855341,0.00020821,2]
[369077161,1751458338558,-300.0,0.00018898,2]
[369077162,1751458338580,-500.0,0.00018899,2]
[369077163,1751458338604,-500.0,0.00018899,2]
[369077164,1751458338626,-374.69383963,0.00018899,2]
[369077165,1751458338647,-500.0,0.00018899,2]
[369077166,1751458338669,-500.0,0.00018899,2]
[369077167,1751458338691,-263.37626313,0.00018899,2]
[369077168,1751458338713,-500.0,0.00018899,2]
[369077169,1751458338735,-500.0,0.00018899,2]
[369077170,1751458338757,-483.30650469,0.00018899,2]
[369077171,1751458338781,-500.0,0.00018899,2]
[369077172,1751458338803,-500.0,0.00018899,2]
[369077173,1751458338829,-500.0,0.00018899,2]
[369077174,1751458338852,-450.0,0.00018899,2]
[369077175,1751458338875,-500.0,0.00018899,2]
[369077176,1751458338897,-500.0,0.00018899,2]
[369077177,1751458338920,-500.0,0.00018899,2]
[369077178,1751458338942,-500.0,0.00018899,2]
[369077179,1751458338964,-500.0,0.00018899,2]
[369077180,1751458338988,-500.0,0.00018899,2]
[369077181,1751458339011,-500.0,0.00018899,2]
[369077182,1751458339038,-500.0,0.00018899,2]
[369077183,1751458339061,-500.0,0.00018899,2]
[369077184,1751458339084,-500.0,0.00018899,2]
[369077185,1751458339108,-500.0,0.00018899,2]
[369077186,1751458339131,-500.0,0.00018899,2]
[369077187,1751458339153,-500.0,0.00018899,2]
[369077188,1751458339176,-309.34649394,0.00018899,2]
[369077189,1751458339200,-500.0,0.00018899,2]
[369077190,1751458339223,-500.0,0.00018899,2]
[369077191,1751458339248,-211.11683512,0.00018899,2]
[369077192,1751458339271,-500.0,0.00018899,2]
[369077193,1751458339293,-282.81553106,0.000189,2]
[369077194,1751458339315,-500.0,0.00019173,2]
[369077195,1751458339337,-500.0,0.00019173,2]
[369077196,1751458339359,-460.0,0.00019178,2]
[369077197,1751458339380,-460.0,0.00019178,2]
[369077198,1751458339402,-113.34453243,0.00019178,2]
[369077199,1751458340918,2036.0,0.000183,30]
[369077205,1751458405726,274.0,0.00025121,120]
[369077207,1751458463125,307.235161,0.00013699,2]
[369077208,1751458514719,466.23537,0.00027397,120]
[369077209,1751458695433,2500.0,0.00027397,120]
[369077214,1751459241140,-166.0,0.00017887,2]
[369077215,1751459241160,-189.183028,0.00017893,2]
[369077216,1751459241181,-504.48807468,0.0001827,2]
[369077217,1751459241201,-207.4,0.00018823,2]
[369077218,1751459241223,-690.642,0.00018823,2]
[369077219,1751459241243,-300.0,0.00018833,2]
[369077220,1751459241262,-300.0,0.00018833,2]
[369077221,1751459241283,-550.0,0.00018834,2]
[369077222,1751459241303,-632.71370443,0.00018834,2]
[369077223,1751459241325,-663.0,0.00018834,2]
[369077224,1751459241345,-340.0,0.00018834,2]
[369077225,1751459241366,-300.0,0.00018834,2]
[369077226,1751459241388,-3916.2750918,0.00018835,2]
[369077264,1751459431934,-300.0,0.00018834,2]
[369077266,1751459431944,-167.09929999,0.00018835,2]
[369077270,1751459431993,-466.53666222,0.00018835,2]
[369077271,1751459432005,-3099.2858162,0.00018835,2]
[369077272,1751459432019,-1436.78503238,0.00018835,2]
[369077273,1751459432044,-561.01946318,0.00018835,2]
[369077274,1751459432056,-3799.25310113,0.00018835,2]
[369077303,1751459437943,-545.89180486,0.00018835,2]
[369077311,1751459438003,-728.1996,0.00018835,2]
[369077341,1751459438280,-1473.30021099,0.00018835,2]
[369077344,1751459438292,-8706.35391725,0.00018835,2]
[369077346,1751459438302,-302.51602579,0.00019,2]
[369077348,1751459438312,-264.49259026,0.00019074,2]
[369077350,1751459438321,-160.0,0.00019163,2]
[369077352,1751459438330,-500.0,0.00019165,2]
[369077354,1751459438340,-472.20210753,0.00019165,2]
[369077356,1751459438349,-207.4,0.00019166,2]
[369077358,1751459438359,-5000.0,0.00019166,2]
[369077360,1751459438368,-46.69390041,0.00019166,2]
[369077362,1751459438384,-253.30609959,0.00019166,2]
[369077364,1751459438393,-300.0,0.00019166,2]
[369077366,1751459438403,-300.0,0.00019166,2]
[369077368,1751459438412,-300.0,0.00019166,2]
[369077370,1751459438422,-300.0,0.00019166,2]
[369077372,1751459438432,-229.91060575,0.00019166,2]
[369077375,1751459438444,-70.08939425,0.00019166,2]
[369077377,1751459438453,-300.0,0.00019166,2]
[369077379,1751459438463,-300.0,0.00019166,2]
[369077381,1751459438473,-300.0,0.00019166,2]
[369077383,1751459438482,-300.0,0.00019166,2]
[369077385,1751459438491,-300.0,0.00019166,2]
[369077387,1751459438501,-300.0,0.00019166,2]
[369077389,1751459438510,-300.0,0.00019166,2]
[369077391,1751459438519,-300.0,0.00019166,2]
[369077393,1751459438529,-6916.52237755,0.00019166,2]
[369077395,1751459438540,-3632.79933262,0.00019166,2]
[369077541,1751459440174,-254.00260516,0.00019166,2]
[369077543,1751459440187,-514.49783052,0.00019166,2]
[369077545,1751459440198,-603.519,0.00019166,2]
[369077547,1751459440209,-824.95454347,0.00019166,2]
[369077550,1751459440223,-345.8717598,0.00019166,2]
[369077552,1751459440236,-4632.96213968,0.00019166,2]
[369077554,1751459440245,-215.04179405,0.00019174,2]
[369077556,1751459440254,-160.0,0.00019174,2]
[369077558,1751459440263,-847.65867985,0.00019174,2]
[369077560,1751459440273,-160.0,0.00019174,2]
[369077562,1751459440282,-837.27862799,0.00019174,2]
[369077564,1751459440291,-213.90888375,0.00019174,2]
[369077566,1751459440300,-160.0,0.00019174,2]
[369077568,1751459440310,-160.0,0.00019174,2]
[369077570,1751459440319,-160.0,0.00019174,2]
[369077572,1751459440329,-460.0,0.00019178,2]
[369077574,1751459440339,-460.0,0.00019178,2]
[369077576,1751459440350,-460.0,0.00019178,2]
[369077578,1751459440359,-461.41970876,0.00019178,2]
[369077581,1751459440377,-66.32858229,0.00019178,2]
[369077583,1751459440386,-460.0,0.00019178,2]
[369077585,1751459440396,-460.0,0.00019178,2]
[369077587,1751459440406,-468.18712179,0.00019178,2]
[369077589,1751459440416,-100.06167527,0.00019178,2]
[369077855,1751459443156,-4130.90573929,0.00019174,2]
[369077863,1751459443223,-8442.74526082,0.00019174,2]
[369077865,1751459443234,-230.34465076,0.00019174,2]
[369077867,1751459443243,-359.93832473,0.00019178,2]
[369077869,1751459443253,-460.0,0.00019178,2]
[369077871,1751459443262,-460.0,0.00019178,2]
[369077873,1751459443271,-460.0,0.00019178,2]
[369077875,1751459443281,-460.0,0.00019178,2]
[369077877,1751459443290,-460.0,0.00019178,2]
[369077879,1751459443299,-460.0,0.00019178,2]
[369077881,1751459443309,-460.0,0.00019178,2]
[369077883,1751459443318,-460.0,0.00019178,2]
[369077885,1751459443328,-460.0,0.00019178,2]
[369077887,1751459443337,-460.0,0.00019178,2]
[369077889,1751459443350,-460.0,0.00019178,2]
[369077891,1751459443359,-460.0,0.00019178,2]
[369077893,1751459443369,-460.0,0.00019178,2]
[369077895,1751459443378,-468.55483419,0.00019178,2]
[369077897,1751459443388,-1667.47,0.00019178,2]
[369077899,1751459443397,-460.0,0.00019178,2]
[369077901,1751459443407,-460.0,0.00019178,2]
[369077903,1751459443416,-460.0,0.00019178,2]
[369077905,1751459443426,-460.0,0.00019178,2]
[369077907,1751459443435,-460.0,0.00019178,2]
[369077909,1751459443445,-500.0,0.00019178,2]
[369077911,1751459443454,-500.0,0.00019178,2]
[369077913,1751459443464,-460.0,0.00019178,2]
[369077915,1751459443473,-460.0,0.00019178,2]
[369077917,1751459443482,-460.0,0.00019178,2]
[369077919,1751459443493,-460.0,0.00019178,2]
[369077922,1751459443503,-460.0,0.00019178,2]
[369077924,1751459443512,-460.0,0.00019178,2]
[369077926,1751459443522,-462.69897738,0.00019178,2]
[369077928,1751459443531,-236.62057625,0.00019178,2]
[369077930,1751459443541,-460.0,0.00019178,2]
[369077932,1751459443551,-460.0,0.00019178,2]
[369077933,1751459443564,-460.0,0.00019178,2]
[369077935,1751459443574,-1002.47827891,0.00019178,2]
[369077938,1751459443583,-463.71195241,0.00019178,2]
[369077940,1751459443594,-460.0,0.00019178,2]
[369077941,1751459443604,-460.0,0.00019178,2]
[369077943,1751459443614,-460.0,0.00019178,2]
[369077945,1751459443623,-465.29447915,0.00019178,2]
[369077947,1751459443633,-500.0,0.00019178,2]
[369077949,1751459443643,-500.0,0.00019178,2]
[369077951,1751459443652,-460.0,0.00019178,2]
[369077953,1751459443661,-460.0,0.00019178,2]
[369077955,1751459443671,-460.0,0.00019178,2]
[369077957,1751459443681,-764.89,0.00019178,2]
[369077959,1751459443691,-460.0,0.00019178,2]
[369077961,1751459443700,-1152.57236673,0.00019178,2]
[369077964,1751459443713,-194.96763327,0.00019178,2]
[369077966,1751459443723,-460.0,0.00019178,2]
[369077968,1751459443732,-460.0,0.00019178,2]
[369077970,1751459443741,-460.0,0.00019178,2]
[369077972,1751459443751,-1562.02,0.00019178,2]
[369077974,1751459443760,-161.47751974,0.00019178,2]
[369077976,1751459443770,-463.11208431,0.00019178,2]
[369077978,1751459443779,-460.0,0.00019178,2]
[369077980,1751459443788,-1098.66,0.00019178,2]
[369077982,1751459443798,-460.0,0.00019178,2]
[369077984,1751459443807,-460.0,0.00019178,2]
[369077986,1751459443817,-262.86526047,0.00019178,2]
[369078048,1751459444412,-197.13473953,0.00019178,2]
[369078050,1751459444423,-460.0,0.00019178,2]
[369078052,1751459444432,-460.0,0.00019178,2]
[369078054,1751459444442,-460.0,0.00019178,2]
[369078056,1751459444452,-460.0,0.00019178,2]
[369078058,1751459444461,-288.07129699,0.00019178,2]
[369078060,1751459444471,-460.0,0.00019178,2]
[369078062,1751459444480,-460.0,0.00019178,2]
[369078064,1751459444490,-596.43,0.00019178,2]
[369078066,1751459444499,-460.0,0.00019178,2]
[369078068,1751459444509,-460.0,0.00019178,2]
[369078070,1751459444519,-301.2030837,0.00019178,2]
[369078072,1751459444528,-1480.55,0.00019178,2]
[369078074,1751459444537,-460.0,0.00019178,2]
[369078076,1751459444547,-462.1042617,0.00019178,2]
[369078078,1751459444560,-1403.22,0.00019178,2]
[369078080,1751459444570,-2570.33,0.00019178,2]
[369078082,1751459444579,-217.01,0.00019178,2]
[369078084,1751459444589,-460.0,0.00019178,2]
[369078086,1751459444599,-483.64,0.00019178,2]
[369078087,1751459444609,-460.0,0.00019178,2]
[369078089,1751459444618,-460.0,0.00019178,2]
[369078091,1751459444630,-460.0,0.00019178,2]
[369078094,1751459444641,-1080.88,0.00019178,2]